bitfinex-derivatives/quotes_BTCF0:USTF0_20240907
["timestamp","ask_amount","ask_price","bid_price","bid_amount"]
[1725696312224,0.092117,54287.0,54285.0,0.24717772]
[1725696312618,0.104977,54287.0,54285.0,0.24717772]
[1725696312818,0.104977,54287.0,54285.0,0.1]
[1725696313424,0.104977,54287.0,54281.0,0.07356876]
[1725696313425,0.01286,54287.0,54281.0,0.05505772]
[1725696313620,0.05510204,54284.0,54281.0,0.05505772]
[1725696313926,0.05510204,54284.0,54280.0,0.0597045]
[1725696313927,0.05510204,54283.0,54280.0,0.0597045]
[1725696314119,0.092127,54281.0,54280.0,0.05505772]
[1725696314925,0.105157,54281.0,54280.0,0.05505772]
[1725696315327,0.104987,54281.0,54280.0,0.05505772]
[1725696315729,0.17860493,54281.0,54280.0,0.05505772]
[1725696316027,0.17860493,54281.0,54276.0,0.1]
[1725696316028,0.092132,54278.0,54277.0,0.05505772]
[1725696316530,0.104992,54278.0,54277.0,0.05505772]
[1725696319646,0.104992,54278.0,54272.0,0.1]
[1725696320130,0.09214,54274.0,54272.0,0.1]
[1725696320322,0.105,54274.0,54272.0,0.1]
[1725696321531,0.09214,54273.0,54272.0,0.15516917]
[1725696321732,0.105,54273.0,54272.0,0.15516917]
[1725696322032,0.105,54273.0,54272.0,0.15516747]
[1725696322228,0.105,54273.0,54272.0,0.1]
[1725696322726,0.105,54273.0,54272.0,0.15515843]
[1725696323130,0.01286,54273.0,54272.0,0.192142]
[1725696323733,0.01286,54273.0,54272.0,0.24729463]
[1725696323922,0.01286,54273.0,54272.0,0.2472918]
[1725696325032,0.01286,54273.0,54272.0,0.192142]
[1725696325334,0.01286,54273.0,54272.0,0.24728631]
[1725696326936,0.01286,54273.0,54272.0,0.192142]
[1725696327143,0.01286,54273.0,54272.0,0.24727399]
[1725696327433,0.105,54273.0,54272.0,0.192142]
[1725696329626,0.01286,54273.0,54272.0,0.192142]
[1725696331027,0.01286,54273.0,54272.0,0.26570089]
[1725696331636,0.01286,54273.0,54272.0,0.192142]
[1725696338530,0.01286,54273.0,54272.0,0.26570089]
[1725696339148,0.01286,54273.0,54272.0,0.26568725]
[1725696339529,0.01286,54273.0,54272.0,0.192142]
[1725696342532,0.01286,54273.0,54272.0,0.28423123]
[1725696342938,0.01286,54273.0,54272.0,0.192142]
[1725696343651,0.06796207,54273.0,54272.0,0.33253662]
[1725696345243,0.068071,54273.0,54272.0,0.33253662]
[1725696346040,0.068071,54273.0,54272.0,0.33253481]
[1725696349539,0.01286,54273.0,54272.0,0.33253481]
[1725696350837,0.01286,54273.0,54272.0,0.33252987]
[1725696351243,0.01286,54273.0,54272.0,0.23252987]
[1725696351444,0.01286,54273.0,54272.0,0.33252987]
[1725696355747,0.068071,54273.0,54272.0,0.33252987]
[1725696358045,0.01286,54273.0,54272.0,0.33252987]
[1725696360647,0.068071,54273.0,54272.0,0.33252987]
[1725696364449,0.01286,54273.0,54272.0,0.42467187]
[1725696364651,0.055211,54277.0,54272.0,0.59599638]
[1725696364846,0.055211,54279.0,54278.0,0.092132]
[1725696365044,0.068071,54279.0,54278.0,0.32464256]
[1725696365354,0.160201,54279.0,54278.0,0.32464256]
[1725696366449,0.160201,54279.0,54278.0,0.18425469]
[1725696366759,0.160201,54279.0,54278.0,0.092132]
[1725696366946,0.160201,54279.0,54278.0,0.18425469]
[1725696367555,0.10499,54279.0,54278.0,0.092132]
[1725696367758,0.160201,54279.0,54278.0,0.092132]
[1725696372549,0.16016558,54279.0,54278.0,0.16578281]
[1725696372747,0.16016626,54279.0,54278.0,0.092132]
[1725696372952,0.10499,54279.0,54278.0,0.1657825]
[1725696373262,0.16016575,54279.0,54278.0,0.092132]
[1725696373651,0.16016575,54279.0,54278.0,0.1657823]
[1725696373861,0.10499,54279.0,54278.0,0.1657823]
[1725696374362,0.10499,54279.0,54278.0,0.0736503]
[1725696374660,0.08632943,54279.0,54276.0,0.1736503]
[1725696374960,0.07346943,54278.0,54276.0,0.1736503]
[1725696375150,0.08632943,54278.0,54276.0,0.1736503]
[1725696375558,0.092133,54277.0,54276.0,0.1736503]
[1725696375748,0.104993,54277.0,54276.0,0.1736503]
[1725696376560,0.151393,54277.0,54276.0,0.1736503]
[1725696377162,0.151393,54277.0,54276.0,0.0736503]
[1725696377462,1.4898783,54277.0,54270.0,0.0736503]
[1725696377659,0.092145,54270.0,54269.0,0.0736503]
[1725696377964,0.105005,54270.0,54269.0,0.0736503]
[1725696378455,0.092147,54269.0,54268.0,0.0736503]
[1725696379062,0.105007,54269.0,54268.0,0.0736503]
[1725696379464,0.092149,54268.0,54267.0,0.0736503]
[1725696379657,0.14728346,54268.0,54267.0,0.0736503]
[1725696380164,0.09215,54267.0,54266.0,0.0736503]
[1725696380361,0.092152,54266.0,54265.0,0.0736503]
[1725696380553,0.092152,54266.0,54264.0,0.1736503]
[1725696380753,0.105012,54266.0,54264.0,0.1736503]
[1725696380957,0.105012,54266.0,54265.0,0.0736503]
[1725696381267,0.16014467,54266.0,54265.0,0.0736503]
[1725696381461,0.16014467,54266.0,54265.0,0.092154]
[1725696381462,0.01286,54266.0,54265.0,0.092154]
[1725696381765,0.01286,54266.0,54265.0,0.16573421]
[1725696382162,0.105014,54266.0,54262.0,0.07358779]
[1725696382362,0.05510204,54263.0,54262.0,0.17358779]
[1725696382566,0.14725904,54263.0,54262.0,0.1]
[1725696383060,0.16011904,54263.0,54262.0,0.1]
[1725696383461,0.105017,54263.0,54262.0,0.1]
[1725696386664,0.01286,54263.0,54262.0,0.192159]
[1725696389461,0.01286,54263.0,54262.0,0.092159]
[1725696389766,0.01286,54263.0,54262.0,0.24726602]
[1725696396273,0.01286,54263.0,54262.0,0.192159]
[1725696399162,0.01286,54263.0,54262.0,0.42468032]
[1725696400466,0.01286,54263.0,54262.0,0.33255763]
[1725696404474,0.01286,54263.0,54262.0,0.33256532]
[1725696406879,0.01286,54263.0,54262.0,0.42472432]
[1725696407271,0.01286,54263.0,54262.0,0.59561433]
[1725696408577,0.05510204,54271.0,54270.0,0.092145]
[1725696408788,0.15193022,54272.0,54271.0,0.092144]
[1725696408971,0.16479022,54272.0,54271.0,0.16578987]
[1725696409168,0.44239323,54272.0,54271.0,0.16578987]
[1725696409878,0.38260501,54272.0,54271.0,0.16578987]
[1725696410085,0.43770705,54272.0,54271.0,0.16578987]
[1725696410576,0.38260501,54272.0,54271.0,0.16578987]
[1725696411384,0.43770705,54272.0,54271.0,0.16578987]
[1725696411569,0.38260501,54272.0,54271.0,0.16578987]
[1725696411770,0.38260501,54272.0,54271.0,0.09669362]
[1725696411977,0.29046301,54272.0,54271.0,0.17033949]
[1725696413778,0.34556505,54272.0,54271.0,0.17033949]
[1725696414184,0.29046301,54272.0,54271.0,0.17033949]
[1725696415586,0.34556505,54272.0,54271.0,0.17033949]
[1725696419782,0.29046301,54272.0,54271.0,0.09669362]
[1725696419990,0.12867706,54280.0,54274.0,0.092138]
[1725696420175,0.09193826,54290.0,54280.0,0.092128]
[1725696420377,0.18813826,54291.0,54289.0,0.1]
[1725696420582,0.18258396,54291.0,54289.0,0.1]
[1725696420778,0.05514489,54290.0,54289.0,0.24732453]
[1725696421191,0.06800489,54290.0,54289.0,0.092113]
[1725696421379,0.06800489,54290.0,54289.0,0.192113]
[1725696421380,0.01286,54290.0,54289.0,0.192113]
[1725696422177,0.01286,54290.0,54289.0,0.26556973]
[1725696422583,0.01286,54290.0,54289.0,0.192113]
[1725696422888,0.01286,54290.0,54289.0,0.19665442]
[1725696427197,0.01286,54290.0,54289.0,0.25161022]
[1725696428291,0.01286,54290.0,54289.0,0.19665442]
[1725696432296,0.01286,54290.0,54289.0,0.09665442]
[1725696432597,0.01286,54290.0,54289.0,0.19665442]
[1725696442505,0.01286,54290.0,54289.0,0.34372322]
[1725696442801,0.092095,54300.0,54299.0,0.092096]
[1725696443003,0.092095,54300.0,54299.0,0.192096]
[1725696443207,0.104945,54300.0,54299.0,0.192096]
[1725696445222,0.104945,54300.0,54299.0,0.092096]
[1725696445504,0.104945,54300.0,54299.0,0.192096]
[1725696446094,0.01285,54300.0,54299.0,0.192096]
[1725696446296,0.01285,54300.0,54299.0,0.284192]
[1725696446497,0.01285,54300.0,54299.0,0.33913758]
[1725696447099,0.01285,54300.0,54299.0,0.35753279]
[1725696447505,0.01285,54300.0,54299.0,0.37621841]
[1725696447706,0.01285,54300.0,54299.0,0.51652084]
[1725696448196,0.01285,54300.0,54299.0,0.37621841]
[1725696448615,0.01285,54300.0,54299.0,0.42449429]
[1725696449702,0.01285,54300.0,54299.0,0.42910227]
[1725696450107,0.01285,54300.0,54299.0,0.59987355]
[1725696450306,0.01285,54300.0,54299.0,0.42910227]
[1725696451905,0.01285,54300.0,54299.0,0.59987302]
[1725696452305,0.01285,54300.0,54299.0,0.52119827]
[1725696452500,0.01285,54300.0,54299.0,0.69196868]
[1725696452805,0.01285,54300.0,54299.0,0.69196751]
[1725696454213,0.01285,54300.0,54299.0,0.52119714]
[1725696456911,0.0915,54309.0,54308.0,0.284162]
[1725696457103,0.0451,54316.0,54315.0,0.092069]
[1725696457504,0.05795,54316.0,54315.0,0.092069]
[1725696458601,0.150017,54316.0,54315.0,0.092069]
[1725696459010,0.150017,54316.0,54315.0,0.192069]
[1725696460622,0.01285,54316.0,54315.0,0.192069]
[1725696461110,0.01285,54316.0,54315.0,0.26552334]
[1725696461307,0.01285,54316.0,54315.0,0.35759234]
[1725696461517,0.01285,54316.0,54315.0,0.284138]
[1725696462304,0.01285,54316.0,54315.0,0.35747173]
[1725696462504,0.01285,54316.0,54315.0,0.284138]
[1725696463216,0.01285,54316.0,54315.0,0.35748709]
[1725696463613,0.01285,54316.0,54315.0,0.35748093]
[1725696465223,0.01285,54316.0,54315.0,0.284138]
[1725696471211,0.01285,54316.0,54315.0,0.192069]
[1725696471616,0.01285,54316.0,54315.0,0.24706894]
[1725696472311,0.01285,54316.0,54315.0,0.192069]
[1725696474628,0.01285,54316.0,54315.0,0.35748093]
[1725696474807,0.01285,54316.0,54315.0,0.284138]
[1725696475012,0.01285,54316.0,54315.0,0.376207]
[1725696475208,0.13875,54327.0,54326.0,0.09205]
[1725696475412,0.13875,54327.0,54326.0,0.19205]
[1725696475611,0.42665824,54327.0,54326.0,0.19205]
[1725696476221,0.33460824,54327.0,54326.0,0.19205]
[1725696476525,0.05955,54327.0,54326.0,0.19205]
[1725696478219,0.05955,54327.0,54326.0,0.09205]
[1725696478421,0.05955,54327.0,54326.0,0.19205]
[1725696478831,0.151599,54327.0,54326.0,0.09205]
[1725696479822,0.151599,54327.0,54326.0,0.19205]
[1725696482327,0.20666402,54327.0,54326.0,0.19205]
[1725696484333,0.151599,54327.0,54326.0,0.19205]
[1725696486350,0.22512296,54327.0,54326.0,0.19205]
[1725696488652,0.22512296,54327.0,54326.0,0.24707328]
[1725696489349,0.151599,54327.0,54326.0,0.24707328]
[1725696489558,0.09205,54326.0,54325.0,0.05502328]
[1725696489942,0.1049,54326.0,54325.0,0.05502328]
[1725696490441,0.092052,54325.0,54324.0,0.092054]
[1725696492647,0.092055,54323.0,54322.0,0.07336438]
[1725696492851,0.84129936,54325.0,54321.0,0.07336438]
[1725696492852,0.092057,54322.0,54321.0,0.07336438]
[1725696493851,0.092057,54322.0,54321.0,0.16542338]
[1725696494050,0.17852719,54322.0,54321.0,0.092059]
[1725696494240,0.17852733,54322.0,54321.0,0.092059]
[1725696494445,0.104907,54322.0,54321.0,0.092059]
[1725696496747,0.09206,54320.0,54319.0,0.1]
[1725696497243,0.01285,54320.0,54319.0,0.192062]
[1725696498860,0.01285,54320.0,54316.0,0.09184068]
[1725696499044,0.09193826,54319.0,54318.0,0.05515792]
[1725696499244,0.47482566,54320.0,54318.0,0.05515792]
[1725696499455,0.092062,54319.0,54318.0,0.05515792]
[1725696499746,0.092066,54317.0,54316.0,0.0735439]
[1725696499955,0.16566855,54317.0,54316.0,0.0735439]
[1725696500149,0.092067,54316.0,54315.0,0.2656119]
[1725696500860,0.104917,54316.0,54315.0,0.2656119]
[1725696501762,0.104917,54316.0,54315.0,0.192068]
[1725696503756,0.01285,54316.0,54315.0,0.192068]
[1725696504651,0.06800941,54316.0,54315.0,0.24717494]
[1725696504854,0.06800941,54316.0,54315.0,0.192068]
[1725696505261,0.01285,54316.0,54315.0,0.192068]
[1725696505964,0.01285,54316.0,54315.0,0.092068]
[1725696506162,1.26517,54316.0,54311.0,0.0735439]
[1725696506463,0.14722842,54312.0,54311.0,0.05510737]
[1725696506663,0.104924,54312.0,54310.0,0.14718337]
[1725696506858,0.16007872,54312.0,54310.0,0.14718337]
[1725696507055,0.092079,54309.0,54308.0,0.05510737]
[1725696507258,0.14721832,54309.0,54306.0,0.14719137]
[1725696507463,0.14722069,54308.0,54306.0,0.14719137]
[1725696507661,0.14722169,54307.0,54306.0,0.05510737]
[1725696507968,0.092084,54306.0,54305.0,0.05510737]
[1725696508163,0.092088,54304.0,54303.0,0.14719637]
[1725696508359,0.092088,54304.0,54303.0,0.05510737]
[1725696508559,0.092089,54303.0,54302.0,0.05510737]
[1725696508756,0.092089,54303.0,54301.0,0.141492]
[1725696508757,0.104939,54303.0,54301.0,0.141492]
[1725696509055,0.104939,54303.0,54302.0,0.0550517]
[1725696509953,0.104939,54303.0,54302.0,0.1471427]
[1725696510157,0.104939,54303.0,54302.0,0.092091]
[1725696510367,0.01285,54303.0,54302.0,0.192091]
[1725696510561,0.01285,54303.0,54302.0,0.239791]
[1725696511956,0.104939,54303.0,54301.0,0.141491]
[1725696512166,0.104939,54303.0,54301.0,0.0494]
[1725696512167,0.092091,54302.0,54301.0,0.0494]
[1725696512762,0.105611,54302.0,54301.0,0.0494]
[1725696512962,0.104941,54302.0,54301.0,0.0494]
[1725696513568,0.104941,54302.0,54298.0,0.282098]
[1725696515470,0.104941,54302.0,54299.0,0.092095]
[1725696518063,0.01285,54302.0,54301.0,0.282093]
[1725696522079,0.01285,54302.0,54301.0,0.33711615]
[1725696523669,0.01285,54302.0,54301.0,0.34160877]
[1725696524276,0.01285,54302.0,54301.0,0.34159417]
[1725696524475,0.01285,54302.0,54301.0,0.28658562]
[1725696527469,0.01285,54302.0,54301.0,0.34162377]
[1725696527670,0.01285,54302.0,54301.0,0.092093]
[1725696533177,0.01285,54302.0,54301.0,0.14713115]
[1725696533684,0.09193826,54309.0,54301.0,0.14713115]
[1725696533685,0.05514764,54315.0,54301.0,1.74538103]
[1725696533888,0.06799764,54315.0,54314.0,0.282071]
[1725696534071,0.01285,54315.0,54314.0,0.33714577]
[1725696534274,0.01285,54315.0,54314.0,0.282071]
[1725696535174,0.01285,54315.0,54314.0,0.35547989]
[1725696537684,0.01285,54315.0,54314.0,0.282071]
[1725696538984,0.01285,54315.0,54314.0,0.28661521]
[1725696539289,0.01285,54315.0,54314.0,0.34162641]
[1725696539488,0.01285,54315.0,54314.0,0.28661521]
[1725696540081,0.01285,54315.0,54314.0,0.34162352]
[1725696546985,0.01285,54315.0,54314.0,0.28661521]
[1725696547296,0.01285,54315.0,54314.0,0.34159831]
[1725696552991,0.01285,54315.0,54314.0,0.3370541]
[1725696553899,0.01285,54315.0,54314.0,0.2470541]
[1725696554089,0.01285,54315.0,54314.0,0.192071]
[1725696554291,0.01285,54315.0,54314.0,0.2470541]
[1725696555301,0.01285,54315.0,54314.0,0.192071]
[1725696555893,0.01285,54315.0,54314.0,0.282071]
[1725696557206,0.01285,54315.0,54314.0,0.3370541]
[1725696558191,0.01285,54315.0,54314.0,0.282071]
[1725696563096,0.06799764,54315.0,54314.0,0.42234863]
[1725696567807,0.01285,54315.0,54314.0,0.42234863]
[1725696568011,0.01285,54315.0,54314.0,0.51429352]
[1725696568307,0.01285,54315.0,54314.0,0.42234863]
[1725696568902,0.06809054,54315.0,54314.0,0.42234863]
[1725696570507,0.01285,54315.0,54314.0,0.42234863]
[1725696572121,0.06809054,54315.0,54314.0,0.42234863]
[1725696573406,0.01285,54315.0,54314.0,0.42234863]
[1725696573817,0.06809181,54315.0,54314.0,0.42234863]
[1725696574610,0.01285,54315.0,54314.0,0.42234863]
[1725696575112,0.01285,54315.0,54314.0,0.51428654]
[1725696575508,0.06809218,54315.0,54314.0,0.42234863]
[1725696575718,0.01285,54315.0,54314.0,0.42234863]
[1725696576017,0.01285,54315.0,54314.0,0.42428325]
[1725696576213,0.06809235,54315.0,54314.0,0.33234863]
[1725696577312,0.01285,54315.0,54314.0,0.33234863]
[1725696577511,0.06809231,54315.0,54314.0,0.33234863]
[1725696578117,0.01285,54315.0,54314.0,0.33234863]
[1725696578318,0.06809285,54315.0,54314.0,0.33234863]
[1725696579019,0.06809285,54315.0,54314.0,0.33235082]
[1725696579722,0.01285,54315.0,54314.0,0.23235082]
[1725696580021,0.01285,54315.0,54314.0,0.192071]
[1725696580208,0.01285,54315.0,54314.0,0.42428352]
[1725696580515,0.01285,54315.0,54314.0,0.28400156]
[1725696580707,0.01285,54315.0,54314.0,0.42428339]
[1725696580907,0.01285,54315.0,54314.0,0.28400156]
[1725696581118,0.01285,54315.0,54314.0,0.092071]
[1725696581320,0.01285,54315.0,54314.0,0.28400156]
[1725696581509,0.01285,54315.0,54314.0,0.42428584]
[1725696581819,0.01285,54315.0,54314.0,0.28400156]
[1725696582020,0.01285,54315.0,54314.0,0.18400156]
[1725696582204,0.01285,54315.0,54314.0,0.092071]
[1725696582523,0.01285,54315.0,54314.0,0.16560828]
[1725696583313,0.104919,54315.0,54314.0,0.16560828]
[1725696586107,0.204919,54315.0,54314.0,0.07353728]
[1725696586311,0.30150036,54315.0,54314.0,0.05515101]
[1725696586512,0.30150036,54315.0,54312.0,0.05515101]
[1725696586513,0.092072,54313.0,54312.0,0.05515101]
[1725696586716,0.092077,54310.0,54309.0,0.07353728]
[1725696586913,0.092077,54310.0,54307.0,0.092081]
[1725696586914,0.104927,54310.0,54308.0,0.17353728]
[1725696587216,0.092079,54309.0,54308.0,0.1735254]
[1725696587416,0.104929,54309.0,54308.0,0.1]
[1725696588020,0.092081,54308.0,54307.0,0.1656064]
[1725696588221,0.092081,54308.0,54307.0,0.192081]
[1725696588419,0.14727643,54308.0,54307.0,0.2656064]
[1725696588715,0.092081,54308.0,54307.0,0.2656064]
[1725696588922,0.104931,54308.0,54307.0,0.192081]
[1725696589419,0.16011271,54308.0,54307.0,0.192081]
[1725696589719,0.104931,54308.0,54307.0,0.192081]
[1725696590116,0.16011271,54308.0,54307.0,0.192081]
[1725696590617,0.104931,54308.0,54307.0,0.192081]
[1725696590824,0.16011271,54308.0,54307.0,0.1]
[1725696591312,0.104931,54308.0,54307.0,0.155103]
[1725696591508,0.16008571,54308.0,54307.0,0.1]
[1725696592012,0.16008571,54308.0,54307.0,0.055103]
[1725696592013,0.16008492,54308.0,54307.0,0.055103]
[1725696592219,0.16008492,54308.0,54307.0,0.155103]
[1725696592414,0.16008492,54308.0,54307.0,0.1]
[1725696592610,0.104931,54308.0,54307.0,0.1]
[1725696593116,0.16008492,54308.0,54307.0,0.1]
[1725696593719,0.104931,54308.0,54307.0,0.192082]
[1725696594120,0.104931,54308.0,54307.0,0.24716272]
[1725696594315,0.104931,54308.0,54307.0,0.192082]
[1725696594512,0.104931,54308.0,54307.0,0.1]
[1725696594827,0.16008492,54308.0,54307.0,0.1]
[1725696596024,0.16006685,54308.0,54307.0,0.1]
[1725696596319,0.16006513,54308.0,54307.0,0.1]
[1725696596514,0.104931,54308.0,54307.0,0.1]
[1725696596715,0.16006229,54308.0,54307.0,0.1]
[1725696597819,0.104931,54308.0,54307.0,0.1]
[1725696598523,0.06797791,54308.0,54307.0,0.24716272]
[1725696598724,0.01285,54308.0,54307.0,0.192082]
[1725696599023,0.01285,54308.0,54307.0,0.2656074]
[1725696600118,0.01285,54308.0,54307.0,0.26549231]
[1725696600326,0.01285,54308.0,54307.0,0.192082]
[1725696601219,0.01285,54308.0,54307.0,0.26549737]
[1725696602829,0.01285,54308.0,54307.0,0.192082]
[1725696603022,0.01285,54308.0,54307.0,0.26550537]
[1725696603417,0.01285,54308.0,54307.0,0.26550865]
[1725696603618,0.01285,54308.0,54307.0,0.192082]
[1725696603819,0.01285,54308.0,54307.0,0.26551069]
[1725696604231,0.01285,54308.0,54307.0,0.192082]
[1725696605524,0.01285,54308.0,54307.0,0.24721006]
[1725696605725,0.01285,54308.0,54307.0,0.24721297]
[1725696605917,0.01285,54308.0,54307.0,0.192082]
[1725696607528,0.06797791,54308.0,54307.0,0.192082]
[1725696607933,0.01285,54308.0,54307.0,0.192082]
[1725696608541,0.01285,54308.0,54307.0,0.26554693]
[1725696608727,0.01285,54308.0,54307.0,0.192082]
[1725696609128,0.01285,54308.0,54307.0,0.26554693]
[1725696609730,0.08646532,54308.0,54307.0,0.192082]
[1725696610039,0.17854632,54308.0,54307.0,0.192082]
[1725696610241,0.104931,54308.0,54307.0,0.26554693]
[1725696610536,0.17854632,54308.0,54307.0,0.26564559]
[1725696610925,0.104931,54308.0,54307.0,0.192082]
[1725696611527,0.17854632,54308.0,54307.0,0.26565841]
[1725696611736,0.17854632,54308.0,54307.0,0.192082]
[1725696612033,0.104931,54308.0,54307.0,0.192082]
[1725696612842,0.17854632,54308.0,54307.0,0.192082]
[1725696613143,0.08646532,54308.0,54307.0,0.192082]
[1725696613437,0.01285,54308.0,54307.0,0.192082]
[1725696613739,0.01285,54308.0,54307.0,0.284164]
[1725696613946,0.01285,54308.0,54307.0,0.51639417]
[1725696614239,0.00460182,54318.0,54312.0,0.092074]
[1725696614240,0.05521383,54313.0,54312.0,0.092074]
[1725696614433,0.05521383,54313.0,54312.0,0.192074]
[1725696614637,0.01285,54313.0,54312.0,0.192074]
[1725696615228,0.06805138,54313.0,54312.0,0.192074]
[1725696615541,0.01285,54313.0,54312.0,0.192074]
[1725696615929,0.0680562,54313.0,54312.0,0.192074]
[1725696616436,0.01285,54313.0,54312.0,0.192074]
[1725696618042,0.01285,54313.0,54312.0,0.284148]
[1725696619743,0.01285,54313.0,54312.0,0.42443475]
[1725696620334,0.01285,54313.0,54312.0,0.51650875]
[1725696620730,0.01285,54313.0,54312.0,0.42443475]
[1725696621137,0.01285,54313.0,54312.0,0.5345843]
[1725696621442,0.01285,54313.0,54312.0,0.42443475]
[1725696622044,0.01285,54313.0,54312.0,0.42898564]
[1725696626245,0.01285,54313.0,54312.0,0.38054289]
[1725696626435,0.01285,54313.0,54312.0,0.2887149]
[1725696626631,0.01285,54313.0,54312.0,0.38054289]
[1725696626832,0.01285,54313.0,54312.0,0.52081915]
[1725696627037,0.01285,54313.0,54312.0,0.52081668]
[1725696627843,0.01285,54313.0,54312.0,1.07317668]
[1725696628043,0.01285,54313.0,54312.0,0.1966409]
[1725696634955,0.01285,54313.0,54312.0,0.28845814]
[1725696635139,0.01285,54313.0,54312.0,0.1966409]
[1725696638446,0.01285,54313.0,54312.0,0.28845814]
[1725696639058,0.01285,54313.0,54312.0,0.1966409]
[1725696639842,0.01285,54313.0,54312.0,0.42873807]
[1725696640048,0.01285,54313.0,54312.0,0.4287395]
[1725696640251,0.01285,54313.0,54312.0,0.33692226]
[1725696640753,0.01285,54313.0,54312.0,0.4288077]
[1725696641058,0.01285,54313.0,54312.0,0.42880711]
[1725696641253,0.01285,54313.0,54312.0,0.42882852]
[1725696641450,0.01285,54313.0,54312.0,0.33692226]
[1725696641652,0.01285,54313.0,54312.0,0.42882896]
[1725696641847,0.01285,54313.0,54312.0,0.33692226]
[1725696648460,0.01285,54313.0,54312.0,0.42899626]
[1725696648963,0.01285,54313.0,54312.0,0.52107026]
[1725696649850,0.0552062,54319.0,54312.0,0.41558137]
[1725696650055,0.07361532,54322.0,54319.0,0.184124]
[1725696650056,0.0552062,54320.0,54319.0,0.184124]
[1725696650264,0.0680562,54320.0,54319.0,0.5163731]
[1725696652263,0.01285,54320.0,54319.0,0.5163731]
[1725696652864,0.01285,54320.0,54319.0,0.4163731]
[1725696653161,0.01285,54320.0,54319.0,0.5163731]
[1725696654863,0.01285,54320.0,54319.0,0.42440536]
[1725696655465,0.01285,54320.0,54319.0,0.51628165]
[1725696655666,0.01285,54320.0,54319.0,0.42897668]
[1725696655962,0.01285,54320.0,54319.0,0.52084315]
[1725696656354,0.01285,54320.0,54319.0,0.52082706]
[1725696656759,0.01285,54320.0,54319.0,0.42895785]
[1725696657665,0.01285,54320.0,54319.0,0.52080968]
[1725696657866,0.01285,54320.0,54319.0,0.42896165]
[1725696658066,0.01285,54320.0,54319.0,0.52080823]
[1725696658271,0.01285,54320.0,54319.0,0.28869532]
[1725696658468,0.01285,54320.0,54319.0,0.52080389]
[1725696658667,0.01285,54320.0,54319.0,0.38053952]
[1725696659067,0.01285,54320.0,54319.0,0.28869532]
[1725696660370,0.01285,54320.0,54319.0,0.19663332]
[1725696661470,0.0680562,54320.0,54319.0,0.19663332]
[1725696661865,0.01285,54320.0,54319.0,0.19663332]
[1725696667071,0.01285,54320.0,54319.0,0.09663332]
[1725696667271,0.01285,54320.0,54319.0,0.19663332]
[1725696668072,0.0680562,54320.0,54319.0,0.27012873]
[1725696668375,0.01285,54320.0,54319.0,0.19663332]
[1725696668583,0.0680562,54320.0,54319.0,0.19663332]
[1725696669273,0.01285,54320.0,54319.0,0.19663332]
[1725696669667,0.0680562,54320.0,54319.0,0.19663332]
[1725696670064,0.01285,54320.0,54319.0,0.19663332]
[1725696670467,0.0680562,54320.0,54319.0,0.19663332]
[1725696671275,0.0680562,54320.0,54319.0,0.192062]
[1725696671475,0.01285,54320.0,54319.0,0.192062]
[1725696671674,0.06805166,54320.0,54319.0,0.192062]
[1725696672682,0.06805626,54320.0,54319.0,0.192062]
[1725696674275,0.01285,54320.0,54319.0,0.2839062]
[1725696674475,0.01285,54320.0,54319.0,0.42417583]
[1725696675279,0.01285,54320.0,54319.0,0.192062]
[1725696675583,0.01285,54320.0,54319.0,0.42423083]
[1725696676171,0.01285,54320.0,54319.0,0.33233042]
[1725696680381,0.01285,54320.0,54319.0,0.33232722]
[1725696682489,0.01285,54320.0,54319.0,0.33232713]
[1725696685386,0.06805626,54320.0,54319.0,0.33232713]
[1725696685986,0.01285,54320.0,54319.0,0.33232713]
[1725696687187,0.06805626,54320.0,54319.0,0.33232713]
[1725696687597,0.01285,54320.0,54319.0,0.33232713]
[1725696690688,0.16566732,54325.0,54324.0,0.092054]
[1725696691101,0.104902,54325.0,54324.0,0.092054]
[1725696691293,0.17854386,54325.0,54324.0,0.092054]
[1725696691693,0.104902,54325.0,54324.0,0.092054]
[1725696693199,0.17853817,54325.0,54324.0,0.092054]
[1725696694200,0.104902,54325.0,54324.0,0.092054]
[1725696694400,0.104902,54325.0,54324.0,0.09663041]
[1725696694800,0.17853817,54325.0,54324.0,0.09663041]
[1725696695006,0.17853817,54325.0,54324.0,0.19663041]
[1725696696195,0.104902,54325.0,54324.0,0.19663041]
[1725696701195,0.01285,54325.0,54324.0,0.19663041]
[1725696703409,0.08648617,54325.0,54324.0,0.19663041]
[1725696703906,0.01285,54325.0,54324.0,0.19663041]
[1725696705012,0.01285,54325.0,54324.0,0.42880328]
[1725696705599,0.08648617,54325.0,54324.0,0.19663041]
[1725696705905,0.01285,54325.0,54324.0,0.19663041]
[1725696706209,0.08648617,54325.0,54324.0,0.19663041]
[1725696706509,0.01285,54325.0,54324.0,0.19663041]
[1725696707799,0.01285,54325.0,54324.0,0.42880663]
[1725696709712,0.01285,54325.0,54324.0,0.33689027]
[1725696710305,0.01285,54325.0,54324.0,0.42887536]
[1725696710501,0.01285,54325.0,54324.0,0.42887755]
[1725696710704,0.01285,54325.0,54324.0,0.19663041]
[1725696711008,0.01285,54325.0,54324.0,0.3368828]
[1725696711600,0.01285,54325.0,54324.0,0.42886732]
[1725696712309,0.01285,54325.0,54324.0,0.53930567]
[1725696712510,0.01285,54325.0,54324.0,0.4289368]
[1725696713205,0.01285,54325.0,54324.0,0.53927911]
[1725696713409,0.01285,54325.0,54324.0,0.4289368]
[1725696714203,0.01285,54325.0,54324.0,0.53927922]
[1725696714519,0.01285,54325.0,54324.0,0.4289368]
[1725696716117,0.01285,54325.0,54324.0,0.53926705]
[1725696717816,0.01285,54325.0,54324.0,0.4289368]
[1725696723422,0.01285,54325.0,54324.0,0.53924386]
[1725696723618,0.01285,54325.0,54324.0,0.4289368]
[1725696724019,0.01285,54325.0,54324.0,0.5209908]
[1725696724232,0.01285,54325.0,54324.0,0.69168748]
[1725696724420,0.07363617,54335.0,54334.0,0.092037]
[1725696724615,0.08648617,54335.0,54334.0,0.17352199]
[1725696724813,0.28903007,54335.0,54334.0,0.17352199]
[1725696725114,0.01285,54335.0,54334.0,0.26555899]
[1725696726021,0.01285,54335.0,54334.0,0.192037]